bitfinex/quotes_SOLUSD_20251024
["timestamp","ask_amount","ask_price","bid_price","bid_amount"]
[1761266884932,3.87250548,192.85,192.84,5.18564613]
[1761266885220,3.87486168,192.85,192.84,9.31764004]
[1761266885726,0.69,192.88,192.84,9.31764004]
[1761266885927,3.87451705,192.87,192.84,9.31764004]
[1761266886143,4.13199391,192.85,192.66,118.27112602]
[1761266886301,4.13199391,192.83,192.76,22.88]
[1761266886499,3.8763422,192.82,192.8,22.88]
[1761266886721,0.69,192.82,192.8,22.88]
[1761266887032,0.69,192.81,192.8,28.06666303]
[1761266887409,6.22014725,192.81,192.77,49.48869084]
[1761266887596,3.87667202,192.8,192.78,5.18724605]
[1761266887796,0.69,192.8,192.78,5.18724605]
[1761266888108,0.69,192.79,192.78,5.18724605]
[1761266888313,4.56691146,192.79,192.76,5.18753483]
[1761266888531,1.65368505,192.78,192.74,22.88]
[1761266888719,4.13669819,192.77,192.72,5.18887505]
[1761266889038,4.82669819,192.77,192.74,22.88]
[1761266889207,0.69,192.76,192.74,22.88]
[1761266889409,0.69,192.76,192.71,58.81856133]
[1761266889600,0.69,192.76,192.74,22.88]
[1761266890019,0.69,192.78,192.74,22.88]
[1761266890533,0.69,192.78,192.74,27.01669819]
[1761266890834,4.13669819,192.81,192.75,5.18806744]
[1761266891010,0.69,192.78,192.75,5.18806744]
[1761266891347,4.13669819,192.82,192.75,9.32476563]
[1761266891500,3.87687271,192.81,192.75,9.32476563]
[1761266891707,3.87687271,192.8,192.76,4.13669819]
[1761266891906,0.69,192.81,192.77,5.18752917]
[1761266892106,4.5667446,192.8,192.77,5.18752917]
[1761266892309,0.69,192.8,192.77,5.18752917]
[1761266892722,4.13669819,192.85,192.78,4.13669819]
[1761266892921,3.87630483,192.84,192.83,4.13669819]
[1761266893222,0.69,192.86,192.82,4.13669819]
[1761266893435,3.87560875,192.85,192.82,4.13669819]
[1761266893636,0.69,192.88,192.84,27.01669819]
[1761266893834,3.87556636,192.87,192.84,27.01669819]
[1761266894022,3.87556636,192.86,192.85,5.18537723]
[1761266894416,0.69,192.88,192.85,5.18537723]
[1761266894742,3.87492136,192.87,192.86,4.13669819]
[1761266895537,0.69,192.9,192.86,40.65669819]
[1761266895744,3.87427706,192.89,192.86,40.65669819]
[1761266895918,3.87427706,192.88,192.86,40.65669819]
[1761266896114,0.1,192.94,192.87,5.18483952]
[1761266896313,4.56368282,192.93,192.87,9.32153771]
[1761266896517,4.56368282,192.93,192.86,49.48262655]
[1761266896518,4.13669819,192.91,192.86,41.7050965]
[1761266896833,3.87368282,192.9,192.86,41.7050965]
[1761266897034,3.87368282,192.89,192.86,41.7050965]
[1761266897342,4.13669819,192.92,192.86,41.7050965]
[1761266897524,3.87294403,192.91,192.86,45.84179469]
[1761266897724,3.87294403,192.9,192.86,45.84179469]
[1761266897931,3.87294403,192.89,192.86,41.7050965]
[1761266898233,4.13669819,192.88,192.84,22.88]
[1761266898421,3.87241441,192.87,192.83,36.5]
[1761266898626,0.69,192.9,192.84,4.13669819]
[1761266898840,3.87218324,192.89,192.84,4.13669819]
[1761266899036,0.69,192.9,192.83,30.56]
[1761266899216,4.56215938,192.89,192.82,4.13669819]
[1761266899543,3.87215938,192.88,192.82,63.53669819]
[1761266899835,0.69,192.88,192.85,4.13669819]
[1761266900338,0.69,192.88,192.86,5.18510836]
[1761266900713,0.69,192.88,192.84,36.52]
[1761266900910,0.69,192.88,192.84,5.18562437]
[1761266900911,3.87202383,192.87,192.84,5.18562437]
[1761266901115,4.82669819,192.88,192.82,22.88]
[1761266901421,4.56252419,192.87,192.82,22.88]
[1761266901622,0.69,192.87,192.82,22.88]
[1761266902422,0.69,192.87,192.82,28.06592989]
[1761266902837,0.69,192.87,192.82,32.20262808]
[1761266905139,0.69,192.87,192.83,4.13669819]
[1761266905617,4.13669819,192.9,192.87,22.88]
[1761266905618,0.69,192.9,192.87,22.88]
[1761266905817,0.1,192.94,192.87,63.53669819]
[1761266906019,0.69,192.89,192.87,59.4]
[1761266906253,0.1,192.94,192.87,59.4]
[1761266906540,4.56102967,192.93,192.87,63.53669819]
[1761266906746,3.87102967,192.92,192.87,63.53669819]
[1761266906917,4.56102967,192.91,192.87,63.53669819]
[1761266907119,3.87102967,192.9,192.87,63.53669819]
[1761266907342,0.65,192.9,192.88,5.18457071]
[1761266910841,0.65,192.9,192.87,59.4]
[1761266911049,0.65,192.9,192.87,22.88]
[1761266912346,3.86823825,192.89,192.83,1.65191249]
[1761266912540,3.86823825,192.88,192.83,1.65191249]
[1761266912750,3.86823825,192.87,192.83,1.65191249]
[1761266912933,0.65,192.89,192.83,1.65191249]
[1761266913134,6.17071907,192.88,192.82,59.38]
[1761266913446,3.86880658,192.87,192.82,59.38]
[1761266913649,0.65,192.87,192.82,59.38]
[1761266914150,0.65,192.87,192.82,61.03191249]
[1761266914355,0.65,192.87,192.83,5.18591505]
[1761266917264,0.65,192.87,192.84,1.65191249]
[1761266917451,0.65,192.87,192.83,19.80261517]
[1761266917842,0.65,192.87,192.86,22.88]
[1761266918046,0.65,192.89,192.86,22.88]
[1761266918245,3.86859256,192.88,192.86,22.88]
[1761266918445,0.65,192.89,192.86,22.88]
[1761266918766,0.1,192.94,192.9,22.88]
[1761266918948,4.51815217,192.93,192.9,22.88]
[1761266919259,3.86815217,192.92,192.9,22.88]
[1761266919450,0.65,192.92,192.9,22.88]
[1761266919639,0.1,192.94,192.9,29.71584231]
[1761266919834,3.86765168,192.93,192.9,29.71584231]
[1761266920064,3.86765168,192.92,192.9,29.71584231]
[1761266920241,0.75,192.94,192.9,64.56392982]
[1761266920443,4.51722547,192.93,192.9,64.56392982]
[1761266920655,0.65,192.93,192.9,64.56392982]
[1761266920861,0.1,192.94,192.9,64.56392982]
[1761266921045,3.86722519,192.93,192.9,64.56392982]
[1761266921240,0.81,192.94,192.92,1.65191249]
[1761266921241,0.1,192.94,192.92,1.65191249]
[1761266921469,0.1,192.94,192.93,38.17191249]
[1761266922767,0.1,192.94,192.93,44.28243469]
[1761266924971,0.81,192.94,192.93,5.18322707]
[1761266925175,0.81,192.94,192.89,2.57920762]
[1761266925473,3.86471907,192.93,192.91,22.88]
[1761266925642,0.81,192.94,192.91,22.88]
[1761266925959,4.5747188,192.93,192.91,22.88]
[1761266926151,0.71,192.93,192.91,22.88]
[1761266926855,0.71,192.92,192.91,22.88]
[1761266927345,0.71,192.92,192.89,5.18429622]
[1761266927546,0.1,192.94,192.89,5.18429622]
[1761266927746,0.81,192.94,192.9,36.48]
[1761266929172,0.81,192.94,192.89,18.14505105]
[1761266929375,3.38920762,192.94,192.89,5.18429622]
[1761266929553,3.38920762,192.94,192.89,41.64429622]
[1761266929754,0.71,192.93,192.89,5.18429622]
[1761266930072,0.71,192.93,192.89,36.46]
[1761266931376,0.71,192.93,192.9,5.18403317]
[1761266931754,0.1,192.94,192.92,2.57920762]
[1761266931955,0.1,192.94,192.93,39.03920762]
[1761266933356,0.1,192.94,192.93,44.22243469]
[1761266934270,0.1,192.94,192.93,41.64322707]
[1761266934578,0.1,192.94,192.93,44.22243469]
[1761266936055,0.1,192.94,192.93,28.06322707]
[1761266936255,0.1,192.94,192.93,64.50322707]
[1761266937178,0.1,192.94,192.93,67.08243469]
[1761266937973,0.81,192.94,192.93,28.06322707]
[1761266938285,0.81,192.94,192.89,41.60430193]
[1761266938478,0.81,192.94,192.89,77.44505676]
[1761266941158,2.57920762,192.93,192.89,64.48430193]
[1761266941359,2.57920762,192.93,192.89,28.06430193]
[1761266941581,0.71,192.92,192.89,64.48430193]
[1761266942193,2.57920762,192.91,192.84,2.57920762]
[1761266942399,3.28920762,192.9,192.85,5.18537723]
[1761266942565,0.71,192.89,192.85,5.18537723]
[1761266943782,2.57920762,192.88,192.85,41.60537723]
[1761266944185,0.71,192.87,192.85,41.60537723]
[1761266944695,0.71,192.93,192.86,2.57920762]
[1761266944862,3.28920762,192.93,192.86,2.57920762]
[1761266945062,3.28920762,192.93,192.87,2.57920762]
[1761266945063,0.71,192.93,192.87,2.57920762]
[1761266945284,2.67920762,192.94,192.87,2.57920762]
[1761266945285,0.71,192.92,192.88,36.42]
[1761266945596,0.71,192.92,192.88,41.60452856]
[1761266945795,3.28920762,192.92,192.88,41.60452856]
[1761266946410,0.71,192.91,192.88,41.60452856]
[1761266951061,0.71,192.91,192.88,5.18452856]
[1761266951286,0.71,192.91,192.88,41.58452856]
[1761266951661,0.71,192.91,192.88,5.18452856]
[1761266952729,0.71,192.91,192.87,36.38]
[1761266952926,0.71,192.91,192.86,2.57920762]
[1761266953127,0.71,192.91,192.87,36.38]
[1761266955417,0.71,192.91,192.88,5.18457071]
[1761266956715,0.71,192.91,192.87,5.18478753]
[1761266957016,0.71,192.91,192.87,41.54478753]
[1761266957196,0.71,192.91,192.87,57.08609397]
[1761266957394,0.1,192.94,192.9,22.88]
[1761266957607,0.1,192.94,192.92,2.57920762]
[1761266957817,0.67,192.93,192.91,38.93920762]
[1761266958402,0.1,192.94,192.92,5.18349574]
[1761266958604,0.77,192.94,192.92,5.18349574]
[1761266959998,0.1,192.94,192.92,5.18349574]
[1761266960225,0.1,192.94,192.93,2.57920762]
[1761266962001,0.1,192.94,192.93,30.64243469]
[1761266963608,0.1,192.94,192.93,28.58154977]
[1761266963828,0.77,192.94,192.91,5.18353507]
[1761266964025,0.77,192.94,192.91,61.81920762]
[1761266965321,0.77,192.94,192.91,59.24]
[1761266965526,0.77,192.94,192.92,5.18349574]
[1761266968026,0.77,192.94,192.91,22.88]
[1761266968234,2.57920762,192.93,192.89,29.7]
[1761266968527,0.77,192.94,192.89,29.7]
[1761266968708,4.54318768,192.93,192.89,29.7]
[1761266968917,0.67,192.93,192.89,29.7]
[1761266969234,0.67,192.92,192.89,29.7]
[1761266970125,0.67,192.92,192.9,5.18403317]
[1761266970328,0.1,192.94,192.9,5.18403317]
[1761266970522,0.1,192.94,192.93,2.57920762]
[1761266970711,0.1,192.94,192.93,38.91920762]
[1761266970913,0.1,192.94,192.93,38.93920762]
[1761266971405,0.1,192.94,192.93,36.36]
[1761266972101,0.1,192.94,192.93,41.54322707]
[1761266974331,0.1,192.94,192.93,44.12243469]
[1761266976628,0.1,192.94,192.93,41.54322707]
[1761266976828,0.77,192.94,192.93,41.54322707]
[1761266977026,4.64214417,192.94,192.91,36.34]
[1761266977332,0.77,192.94,192.91,36.34]
[1761266977514,0.67,192.93,192.91,36.34]
[1761266978537,0.67,192.93,192.91,41.52358194]
[1761266981623,0.67,192.93,192.91,36.34]
[1761266983025,0.67,192.93,192.88,5.18445174]
[1761266983234,3.87439134,192.92,192.88,5.18445174]
[1761266983437,0.1,192.94,192.91,2.57920762]
[1761266983618,0.1,192.94,192.92,38.91920762]
[1761266983813,0.1,192.94,192.93,38.91920762]
[1761266984126,3.97415819,192.94,192.93,38.91920762]
[1761266984834,4.67415819,192.94,192.93,36.34]
[1761266985034,0.1,192.94,192.93,43.17408645]
[1761266985235,0.1,192.94,192.93,43.69240915]
[1761266985437,0.1,192.94,192.93,43.17408645]
[1761266986227,0.1,192.94,192.93,41.52322707]
[1761266988146,0.1,192.94,192.93,43.17408645]
[1761266988341,0.1,192.94,192.93,54.05056166]
[1761266988734,0.1,192.94,192.93,43.17408645]
[1761266989829,0.1,192.94,192.93,29.71408645]
[1761266990148,0.1,192.94,192.93,43.17408645]
[1761266990330,0.1,192.94,192.93,66.05408645]
[1761266996357,0.1,192.94,192.93,43.17408645]
[1761266996358,1e-08,192.94,192.93,43.17408645]
[1761266996929,1e-08,192.94,192.93,54.56888436]
[1761266997345,0.7,193.04,192.96,22.88]
[1761266997551,0.7,193.04,193.02,1.65085938]
[1761266997758,0.7,193.04,193.03,36.34]
[1761266998059,4.57034952,193.04,193.03,36.34]
[1761266998236,0.7,193.04,193.03,36.34]
[1761266999051,0.7,193.04,193.02,6.83149608]
[1761266999353,0.7,193.04,193.03,36.34]
[1761266999665,11.63246157,193.1,193.03,1.65085938]
[1761266999848,0.7,193.04,193.03,1.65085938]
[1761267000037,0.7,193.04,193.03,36.34]
[1761267000355,0.7,193.04,193.02,6.83149608]
[1761267000560,0.7,193.04,193.03,36.34]
[1761267001438,0.7,193.04,193.02,6.83149608]
[1761267002037,0.7,193.04,193.01,1.65085938]
[1761267002351,0.7,193.04,193.02,36.34]
[1761267002547,0.7,193.04,193.0,22.88]
[1761267002748,1.65085938,193.03,192.93,5.18322707]
[1761267002937,5.51879233,193.02,192.96,1.65085938]
[1761267003139,3.86793295,193.01,192.96,1.65085938]
[1761267003349,0.7,193.01,192.97,1.65085938]
[1761267003544,0.7,193.0,192.97,1.65085938]
[1761267003752,0.7,193.0,192.98,36.34]
[1761267005851,0.7,193.0,192.98,41.52182455]
[1761267006244,0.7,193.0,192.98,5.18182455]
[1761267006750,0.7,193.0,192.99,36.34]
[1761267007151,0.7,193.0,192.98,5.18182455]
[1761267007354,0.7,193.0,192.99,36.34]
[1761267007657,0.7,193.0,192.95,1.65085938]
[1761267007852,2.35085938,193.0,192.96,36.34]
[1761267008364,0.7,192.99,192.95,59.22]
[1761267008551,0.7,192.99,192.95,22.88]
[1761267008855,0.7,192.99,192.95,59.22]
[1761267009058,0.7,193.02,192.98,1.65085938]
[1761267009258,3.86651595,193.04,193.0,1.65085938]
[1761267009561,0.7,193.03,193.01,36.34]
[1761267010060,0.7,193.03,193.02,36.34]
[1761267010851,0.7,193.03,193.01,36.34]
[1761267012036,0.7,193.03,193.0,5.18130388]
[1761267012245,0.7,193.03,193.01,36.34]
[1761267012858,0.7,193.03,193.01,41.52105063]
[1761267013059,0.7,193.03,193.01,5.18105063]
[1761267013238,0.7,193.03,193.01,41.52105063]
[1761267013439,0.7,193.03,193.01,5.18105063]
[1761267013751,0.7,193.03,193.01,41.52105063]
[1761267014649,0.7,193.03,193.01,36.34]
[1761267014845,0.7,193.03,193.0,5.18134715]
[1761267015161,0.7,193.03,193.01,36.34]
[1761267015353,0.7,193.03,193.0,6.83220653]
[1761267015549,0.7,193.03,192.97,0.51821526]
[1761267015756,1.65085938,193.02,192.96,1.65085938]
[1761267016258,1.65085938,193.02,192.95,35.83647433]
[1761267016259,0.71,193.01,192.97,36.34]
[1761267016644,0.71,193.01,192.96,1.65085938]
[1761267016846,0.71,193.01,192.97,43.17276331]
[1761267017552,0.71,193.01,192.98,36.34]
[1761267017957,0.71,193.01,192.98,41.52177541]
[1761267018159,0.71,193.01,192.98,5.18177541]
[1761267018358,0.71,193.01,192.98,41.52177541]
[1761267018944,10.87647521,193.07,192.98,54.47648574]
[1761267019144,3.86586274,193.06,193.01,22.88]
[1761267019363,11.63246157,193.1,193.06,22.88]
[1761267019562,1e-08,193.1,193.09,22.88]
[1761267019863,1e-08,193.1,193.09,88.73712607]
[1761267020069,1e-08,193.1,193.09,124.0241599]
[1761267020239,0.71,193.18,193.13,22.88]
[1761267020446,0.71,193.18,193.13,71.82733459]
[1761267020652,0.71,193.18,193.13,59.3]
[1761267020849,0.71,193.18,193.13,60.95085938]
[1761267021053,0.71,193.2,193.13,60.95085938]
[1761267021250,0.71,193.2,193.14,0.51775913]
[1761267021498,0.71,193.2,193.19,1.65085938]
[1761267021647,0.71,193.2,193.19,38.07085938]
[1761267021841,0.71,193.2,193.19,1.65085938]
[1761267022073,0.71,193.23,193.19,38.07085938]
[1761267022260,0.71,193.23,193.22,1.65085938]
[1761267022569,0.71,193.23,193.18,22.88]
[1761267022768,0.71,193.23,193.22,1.65085938]
[1761267023070,0.71,193.23,193.22,38.09085938]
[1761267023269,18.30381678,193.33,193.2,6.60343752]
[1761267023270,0.2,193.33,193.2,6.60343752]
[1761267023470,0.2,193.33,193.24,22.88]
[1761267023471,0.71,193.3,193.24,22.88]
[1761267023647,0.71,193.3,193.29,1.65085938]
[1761267023852,0.71,193.3,193.29,36.58]
[1761267024049,0.71,193.3,193.29,38.23085938]
[1761267024263,0.91,193.33,193.29,38.23085938]
[1761267024457,0.91,193.33,193.32,1.65085938]
[1761267024859,0.91,193.33,193.32,36.58]
[1761267025062,0.91,193.33,193.32,38.23085938]
[1761267025265,0.91,193.33,193.32,38.21085938]
[1761267026181,0.2,193.33,193.32,36.56]
[1761267026349,0.91,193.33,193.32,61.09085938]
[1761267026550,0.91,193.33,193.28,5.17382203]
[1761267026763,0.71,193.32,193.29,4.1114834]
[1761267026975,0.71,193.32,193.3,23.86]
[1761267027170,0.71,193.32,193.3,36.62]
[1761267027564,0.71,193.32,193.22,0.51754476]
[1761267027772,0.71,193.32,193.26,4.1114834]
[1761267028085,5.17303812,193.31,193.27,36.62]
[1761267028281,5.17303812,193.31,193.26,40.7314834]
[1761267028491,0.67,193.3,193.27,4.1114834]
[1761267028785,0.67,193.3,193.24,22.88]
[1761267028786,14.98795861,193.29,193.13,23.39778594]
[1761267029087,4.1114834,193.27,193.2,4.1114834]
[1761267029293,10.87647521,193.27,193.21,4.1114834]
[1761267029491,0.67,193.26,193.21,4.1114834]
[1761267029789,0.67,193.26,193.15,5.17707512]
[1761267029990,4.7814834,193.26,193.19,4.1114834]
[1761267030174,9.28612764,193.25,193.18,36.62]
[1761267030359,9.95612764,193.25,193.18,36.62]
[1761267030563,0.67,193.24,193.17,4.1114834]
[1761267030780,10.87647521,193.23,193.17,4.1114834]
[1761267030981,4.1114834,193.22,193.14,4.1114834]
[1761267031189,4.7814834,193.22,193.15,40.7314834]
[1761267031365,0.67,193.21,193.15,40.7314834]
[1761267031566,0.67,193.21,193.15,36.62]
[1761267032070,5.17598343,193.2,193.15,22.88]
[1761267032266,9.28746683,193.2,193.14,36.6]
[1761267032580,0.67,193.19,193.14,36.6]
[1761267033997,0.67,193.19,193.14,4.1114834]
[1761267034184,0.67,193.19,193.15,4.1114834]
[1761267034786,0.67,193.19,193.14,40.7114834]
[1761267035085,0.67,193.19,193.16,4.1114834]
[1761267035264,0.67,193.28,193.17,27.50916212]
[1761267035472,0.2,193.33,193.24,4.1114834]
[1761267035473,0.67,193.27,193.24,4.1114834]
[1761267035663,0.67,193.27,193.23,40.6914834]
[1761267036509,5.84411647,193.27,193.23,36.58]
[1761267036677,0.67,193.27,193.23,40.6914834]
[1761267036879,0.67,193.26,193.23,40.6914834]
[1761267037492,0.67,193.26,193.23,36.58]
[1761267038898,0.67,193.26,193.23,45.86659621]
[1761267039200,0.67,193.26,193.24,36.56]
[1761267039984,0.67,193.26,193.22,4.1114834]
[1761267040179,0.67,193.26,193.25,22.88]
[1761267040397,4.1114834,193.31,193.23,45.84662039]
[1761267040579,0.2,193.33,193.27,4.1114834]
[1761267040580,0.67,193.3,193.27,4.1114834]
[1761267040779,0.67,193.3,193.27,40.6514834]
[1761267040976,0.67,193.3,193.27,36.54]
[1761267041487,4.1114834,193.29,193.22,4.1114834]
[1761267041672,4.1114834,193.27,193.12,0.51781275]
[1761267041877,4.1114834,193.24,193.17,4.1114834]
[1761267042075,4.1114834,193.24,193.18,58.94]
[1761267042290,0.72,193.23,193.18,58.94]
[1761267042601,0.72,193.23,193.18,64.11636869]
[1761267042774,0.72,193.23,193.19,4.1114834]
[1761267043205,0.72,193.23,193.18,64.11636869]
[1761267043398,0.72,193.23,193.19,4.1114834]
[1761267043603,0.72,193.25,193.21,22.88]
[1761267043789,0.72,193.25,193.22,36.58]
[1761267044882,5.17415126,193.27,193.22,36.58]
[1761267045084,0.72,193.26,193.22,36.58]
[1761267046086,0.72,193.26,193.21,32.16709368]
[1761267046087,0.72,193.26,193.23,36.56]
[1761267046792,6.84996067,193.26,193.23,36.56]
[1761267046996,0.72,193.26,193.23,36.56]
[1761267047302,0.72,193.25,193.23,36.56]
[1761267047985,0.72,193.28,193.23,36.56]
[1761267048185,0.72,193.31,193.27,6.12996067]
[1761267048417,0.72,193.31,193.28,36.56]
[1761267048708,0.2,193.33,193.29,6.12996067]
[1761267048902,0.2,193.33,193.28,36.56]
[1761267048903,0.72,193.32,193.28,42.68996067]
[1761267049809,0.2,193.33,193.3,6.12996067]
[1761267050105,0.2,193.33,193.32,11.3027312]
[1761267051086,0.2,193.33,193.32,5.17277053]
[1761267051412,0.2,193.33,193.32,11.3027312]
[1761267051891,0.2,193.33,193.32,11.82000825]
[1761267052784,0.2,193.33,193.32,11.3027312]
[1761267053099,0.2,193.33,193.32,47.8827312]
[1761267053515,0.2,193.33,193.32,47.8627312]
[1761267053692,0.2,193.33,193.32,5.17277053]
[1761267053895,0.2,193.33,193.32,47.8627312]
[1761267054493,0.2,193.33,193.27,25.87041889]
[1761267054494,0.92,193.33,193.31,29.00996067]
[1761267054700,0.92,193.33,193.29,36.56]
[1761267054915,0.92,193.33,193.3,36.56]
[1761267055222,0.2,193.33,193.31,6.12996067]
[1761267055790,0.92,193.33,193.3,42.68996067]
[1761267055994,0.2,193.33,193.3,42.68996067]
[1761267056296,0.2,193.33,193.3,36.56]
[1761267056538,0.2,193.33,193.29,22.88]
[1761267056539,0.92,193.33,193.29,22.88]
[1761267056715,0.92,193.33,193.3,36.56]
[1761267056917,0.72,193.32,193.3,36.56]
[1761267057099,0.92,193.33,193.3,36.56]
[1761267057609,6.32996067,193.33,193.3,36.56]
[1761267057813,0.2,193.33,193.28,6.12996067]
[1761267058021,0.72,193.32,193.29,36.56]
[1761267058198,0.92,193.33,193.29,36.56]
[1761267058406,0.92,193.33,193.29,41.73332458]
[1761267059298,0.92,193.33,193.29,47.86328525]
[1761267059820,0.92,193.33,193.29,41.73332458]
[1761267060133,0.92,193.33,193.29,47.86328525]
[1761267060914,0.72,193.32,193.3,36.52]
[1761267061116,0.2,193.33,193.3,42.64996067]
[1761267061508,0.92,193.33,193.3,36.52]
[1761267062023,0.72,193.32,193.28,6.12996067]
[1761267062231,0.72,193.32,193.29,36.52]
[1761267062436,0.72,193.32,193.29,41.69347609]
[1761267062729,0.72,193.32,193.29,36.52]
[1761267063038,6.84996067,193.32,193.26,22.88]
[1761267063323,6.12996067,193.29,193.23,6.12996067]
[1761267063499,6.12996067,193.29,193.24,48.76]
[1761267063699,0.72,193.28,193.24,48.76]
[1761267064007,0.72,193.28,193.24,25.88]
[1761267064197,6.84996067,193.28,193.21,5.17571554]
[1761267064403,6.12996067,193.27,193.22,64.57543862]
[1761267064726,0.72,193.27,193.23,36.52]
[1761267064919,6.84996067,193.26,193.23,36.52]
[1761267065430,0.72,193.25,193.23,36.52]
[1761267068812,6.12996067,193.24,193.2,22.88]
[1761267069125,6.12996067,193.23,193.2,22.88]
[1761267069429,5.89466102,193.25,193.2,22.88]
[1761267069430,6.12996067,193.22,193.2,22.88]
[1761267069804,0.72,193.21,193.2,22.88]
[1761267070311,6.84996067,193.21,193.12,12.9448674]
[1761267070506,6.12996067,193.19,193.13,42.64996067]
[1761267071027,6.78996067,193.18,193.13,36.52]
[1761267071531,0.66,193.17,193.13,36.52]
[1761267071912,0.66,193.17,193.13,42.64996067]
[1761267072112,0.66,193.17,193.13,47.82773629]
[1761267072419,0.66,193.17,193.16,22.88]
[1761267073321,0.66,193.17,193.15,36.52]
[1761267074751,0.66,193.19,193.15,41.69718972]
[1761267075410,6.78996067,193.22,193.16,6.12996067]
[1761267075611,0.66,193.21,193.17,6.12996067]
[1761267075816,0.66,193.21,193.18,36.5]
[1761267077315,6.12996067,193.22,193.18,41.67646812]
[1761267077540,0.66,193.21,193.18,41.67646812]
[1761267079438,0.66,193.2,193.18,41.67646812]
[1761267080339,6.12996067,193.19,193.1,0.51786639]
[1761267080543,6.12996067,193.19,192.96,112.9267595]
[1761267080544,6.12996067,193.14,193.07,5.69741543]
[1761267080856,6.78996067,193.13,193.1,22.88]
[1761267081019,0.66,193.19,193.1,36.48]
[1761267081216,6.12996067,193.13,193.1,36.48]
[1761267081417,0.66,193.12,193.1,36.48]
[1761267081743,6.12996067,193.14,193.1,36.48]
[1761267082129,6.78996067,193.13,193.1,36.48]
[1761267082528,0.66,193.12,193.1,36.48]
[1761267083236,0.66,193.12,193.09,5.17883575]
[1761267083441,0.66,193.12,193.1,36.48]
[1761267083640,6.78996067,193.12,193.1,36.48]
[1761267083814,0.66,193.12,193.1,36.48]
[1761267084019,6.78996067,193.12,193.1,36.48]
[1761267084319,0.66,193.12,193.1,36.48]
[1761267085344,6.78996067,193.14,193.1,41.65865738]
[1761267085640,6.12996067,193.14,193.1,41.65865738]
[1761267085834,0.66,193.13,193.1,41.65865738]
[1761267086828,6.12996067,193.14,193.1,41.65865738]
[1761267086829,0.66,193.17,193.12,6.12996067]
[1761267087142,0.66,193.17,193.13,42.58996067]
[1761267087324,0.66,193.17,193.14,42.58996067]
[1761267087525,0.66,193.17,193.14,36.48]
[1761267087720,141.45103534,193.24,193.14,42.60996067]
[1761267087721,6.12996067,193.2,193.14,42.60996067]
[1761267087941,0.72,193.19,193.16,6.12996067]
[1761267088125,0.72,193.26,193.18,6.12996067]
[1761267088324,0.72,193.25,193.23,6.12996067]
[1761267088526,0.72,193.25,193.22,36.5]
[1761267088739,6.12996067,193.24,193.19,22.88]
[1761267089041,6.12996067,193.23,193.2,36.5]
[1761267089246,6.84996067,193.24,193.2,36.5]
[1761267089420,6.12996067,193.25,193.2,36.5]
[1761267089842,0.72,193.25,193.21,6.12996067]
[1761267090045,0.72,193.25,193.22,6.12996067]
[1761267091048,0.72,193.25,193.22,11.30539905]
[1761267091354,6.84996067,193.25,193.19,22.88]
[1761267091565,6.12996067,193.23,193.2,22.88]
[1761267091851,6.12996067,193.22,193.19,36.5]
[1761267092224,0.72,193.21,193.19,36.5]
[1761267092429,6.12996067,193.24,193.19,41.67609725]
[1761267092651,0.72,193.24,193.19,47.80605792]
[1761267092948,0.72,193.23,193.19,47.80605792]
[1761267093449,0.72,193.23,193.18,11.30646257]
[1761267093747,6.12996067,193.22,193.19,36.48]
[1761267093950,6.84996067,193.23,193.17,22.88]